fUST/lending_fUST_20240107
["ID","MTS","AMOUNT","RATE_DAILY","PERIOD"]
[310636467,1704601769047,154.82968734,0.00017965,3]
[310636468,1704601790489,154.82968734,0.00017964,3]
[310636471,1704601810499,154.82968734,0.00017975,3]
[310636472,1704601828496,154.82968734,0.00017965,3]
[310636516,1704601832223,-874.30897606,0.00019861,2]
[310636517,1704601832233,-156.04606038,0.00019862,2]
[310636518,1704601832242,-2187.76825433,0.00019962,2]
[310636519,1704601832252,-10416.07342598,0.00019963,2]
[310636520,1704601832261,-151.0,0.00019964,2]
[310636521,1704601832271,-242.580168,0.00019964,2]
[310636522,1704601832280,-151.0,0.00019964,2]
[310636523,1704601832289,-151.0,0.00019964,2]
[310636524,1704601832298,-218.346931,0.00019964,2]
[310636525,1704601832307,-3748.48367841,0.00019971,2]
[310636526,1704601832317,-102.83687145,0.00019972,2]
[310636527,1704601832326,-10555.25821443,0.00019972,2]
[310636528,1704601832335,-553.651301,0.00019972,2]
[310636529,1704601832345,-4805.19526599,0.00019972,2]
[310636530,1704601832354,-3383.93994597,0.00019972,2]
[310636531,1704601832363,-151.834987,0.00019972,2]
[310636532,1704601832373,-151.0,0.00019972,2]
[310636533,1704601832382,-151.0,0.00019972,2]
[310636534,1704601832391,-151.0,0.00019973,2]
[310636535,1704601832400,-151.0,0.00019973,2]
[310636536,1704601832410,-19523.82109723,0.00019973,2]
[310636875,1704601841534,-238.89732226,0.00019964,3]
[310637401,1704601846488,154.82968734,0.00017975,3]
[310637727,1704601862502,154.82968734,0.00017975,3]
[310637729,1704601878735,154.82968734,0.00017975,3]
[310637730,1704601896505,154.82968734,0.00017975,3]
[310637731,1704601912612,154.82968734,0.00017975,3]
[310637732,1704601930514,154.82968734,0.00017975,3]
[310637734,1704601948512,154.82968734,0.00017975,3]
[310637735,1704601964511,154.82968734,0.00017966,3]
[310637736,1704601980512,154.82968734,0.00017975,3]
[310637737,1704602004520,154.82968734,0.00017966,3]
[310637738,1704602022521,154.82968734,0.00017975,3]
[310637739,1704602040522,154.82968734,0.00017966,3]
[310637744,1704602060523,154.82968734,0.00017966,3]
[310637745,1704602076523,154.82968734,0.00017975,3]
[310637746,1704602098538,154.82968734,0.00017966,3]
[310637747,1704602114660,154.82968734,0.00017975,3]
[310637748,1704602138548,154.82968734,0.00017966,3]
[310637751,1704602156546,154.82968734,0.00017966,3]
[310637753,1704602172540,154.82968734,0.00017975,3]
[310637757,1704602192543,154.82968734,0.00017966,3]
[310637758,1704602210552,154.82968734,0.00017975,3]
[310637759,1704602228539,154.82968734,0.00017975,3]
[310637760,1704602248558,154.82968734,0.00017966,3]
[310637761,1704602266564,154.82968734,0.00017975,3]
[310637762,1704602288549,154.82968734,0.00017966,3]
[310637763,1704602312555,154.82968734,0.00017974,3]
[310637765,1704602330569,154.82968734,0.00017966,3]
[310637766,1704602346548,154.82968734,0.00017974,3]
[310637767,1704602366553,154.82968734,0.00017966,3]
[310637768,1704602386569,154.82968734,0.00017966,3]
[310637769,1704602404662,154.82968734,0.00017974,3]
[310637770,1704602422577,154.82968734,0.00017966,3]
[310637771,1704602440574,154.82968734,0.00017966,3]
[310637773,1704602462564,154.82968734,0.00017974,3]
[310637774,1704602480570,154.82968734,0.00017974,3]
[310637775,1704602500751,154.82968734,0.00017974,3]
[310637776,1704602520570,154.82968734,0.00017966,3]
[310637777,1704602538576,154.82968734,0.00017974,3]
[310637778,1704602558579,154.82968734,0.00017966,3]
[310637779,1704602576686,154.82968734,0.00017966,3]
[310637780,1704602600696,154.82968734,0.00017974,3]
[310637781,1704602618673,154.82968734,0.00017974,3]
[310637782,1704602634600,154.82968734,0.00017974,3]
[310637786,1704602652590,154.82968734,0.00017974,3]
[310637787,1704602670601,154.82968734,0.00017974,3]
[310637788,1704602688628,154.82968734,0.00017974,3]
[310637790,1704602708593,154.82968734,0.00017966,3]
[310637791,1704602724901,154.82968734,0.00017974,3]
[310637792,1704602742604,154.82968734,0.00017966,3]
[310637793,1704602762716,154.82968734,0.00017974,3]
[310637794,1704602780828,154.82968734,0.00017966,3]
[310637795,1704602798605,154.82968734,0.00017966,3]
[310637796,1704602816604,154.82968734,0.00017974,3]
[310637797,1704602832086,-451.49189854,0.00018635,2]
[310637798,1704602832114,-874.30897606,0.00018636,2]
[310637799,1704602832137,-343.79714882,0.00018637,2]
[310637800,1704602832159,-1000.0,0.0001865,2]
[310637801,1704602832182,-1000.0,0.00018703,2]
[310637802,1704602832204,-1000.0,0.00018742,2]
[310637803,1704602832225,-1000.0,0.00018748,2]
[310637804,1704602832246,-1014.79944308,0.00018856,2]
[310637805,1704602832267,-794.35581734,0.000189,2]
[310637806,1704602832287,-323.76462615,0.00019963,2]
[310637807,1704602832308,-3124.33865142,0.00019963,3]
[310637808,1704602832607,154.82968734,0.00017974,3]
[310637809,1704602854617,154.82968734,0.00017974,3]
[310637811,1704602872621,154.82968734,0.00017974,3]
[310637812,1704602890614,154.82968734,0.00017966,3]
[310637813,1704602908619,154.82968734,0.00017974,3]
[310637814,1704602924625,154.82968734,0.00017966,3]
[310637815,1704602948620,154.82968734,0.00017966,3]
[310637816,1704602952072,-874.30897606,0.00019963,2]
[310637817,1704602952094,-602.7916683,0.00019964,3]
[310637818,1704602966624,154.82968734,0.00017974,3]
[310637821,1704602984625,154.82968734,0.00017966,3]
[310637827,1704603004626,154.82968734,0.00017974,3]
[310637828,1704603020629,154.82968734,0.00017966,3]
[310637895,1704603036637,154.82968734,0.00017966,3]
[310637946,1704603041188,-874.30897606,0.00019177,2]
[310637947,1704603041198,-181.3836995,0.00019178,2]
[310637948,1704603041207,-1182.14303737,0.00019964,3]
[310637949,1704603041245,-943.28829861,0.00019964,3]
[310638001,1704603041733,-456.15814661,0.00019964,3]
[310638191,1704603043480,-271.37018677,0.00019964,3]
[310638924,1704603054640,154.82968734,0.00017974,3]
[310638927,1704603072631,154.82968734,0.00017966,3]
[310638929,1704603094638,154.82968734,0.00017965,3]
[310638932,1704603118641,154.82968734,0.00017965,3]
[310638936,1704603134646,154.82968734,0.00017974,3]
[310638937,1704603150637,154.82968734,0.00017973,3]
[310638938,1704603171273,154.82968734,0.00017964,3]
[310638940,1704603195262,154.82968734,0.00017973,3]
[310638942,1704603215271,154.82968734,0.00017963,3]
[310638943,1704603233296,154.82968734,0.00017963,3]
[310638944,1704603251271,154.82968734,0.00017954,3]
[310638946,1704603271270,154.82968734,0.00017963,3]
[310638947,1704603293269,154.82968734,0.00017954,3]
[310638948,1704603307269,154.82968734,0.00017954,3]
[310638949,1704603325278,154.82968734,0.00016918,3]
[310638950,1704603341273,154.82968734,0.00016917,3]
[310638954,1704603359288,154.82968734,0.00016917,3]
[310638957,1704603377284,154.82968734,0.00016917,3]
[310638958,1704603395320,154.82968734,0.00016917,3]
[310638959,1704603413285,154.82968734,0.00016917,3]
[310638960,1704603435292,154.82968734,0.00016917,3]
[310638962,1704603455292,154.82968734,0.00016917,3]
[310638963,1704603473288,154.82968734,0.00016917,3]
[310638965,1704603491299,67.77366352,0.00016917,3]
[310638966,1704603491325,87.05602382,0.00016917,3]
[310638967,1704603509295,154.82968734,0.00016917,3]
[310638968,1704603529286,154.82968734,0.00016917,3]
[310638969,1704603549295,154.82968734,0.00016917,3]
[310638970,1704603567286,154.82968734,0.00016917,3]
[310638973,1704603587286,154.82968734,0.00016917,3]
[310638975,1704603605302,154.82968734,0.00016917,3]
[310638976,1704603623302,154.82968734,0.00016917,3]
[310638977,1704603641298,154.82968734,0.00016917,3]
[310638978,1704603657298,154.82968734,0.00016917,3]
[310638979,1704603673299,154.82968734,0.00016917,3]
[310638980,1704603689308,154.82968734,0.00016917,3]
[310638981,1704603709309,154.82968734,0.00016917,3]
[310638982,1704603729304,154.82968734,0.00016917,3]
[310638985,1704603747304,154.82968734,0.00016917,3]
[310638990,1704603765310,154.82968734,0.00016917,3]
[310638992,1704603783330,154.82968734,0.00016917,3]
[310638994,1704603799367,154.82968734,0.00016917,3]
[310638996,1704603819316,154.82968734,0.00016917,3]
[310638999,1704603837344,154.82968734,0.00016917,3]
[310639000,1704603855322,154.82968734,0.00016917,3]
[310639001,1704603873316,154.82968734,0.00016917,3]
[310639003,1704603889333,154.82968734,0.00016917,3]
[310639004,1704603907335,154.82968734,0.00016917,3]
[310639005,1704603925334,154.82968734,0.00016917,3]
[310639006,1704603949340,154.82968734,0.00016917,3]
[310639009,1704603967365,154.82968734,0.00016917,3]
[310639010,1704603987337,154.82968734,0.00016917,3]
[310639013,1704604007373,154.82968734,0.00016917,3]
[310639015,1704604031347,154.82968734,0.00016917,3]
[310639016,1704604046086,-154.82968734,0.00018798,2]
[310639017,1704604046108,-15547.5789079,0.00018799,2]
[310639018,1704604053357,154.82968734,0.00017974,3]
[310639019,1704604073354,154.82968734,0.00017974,3]
[310639021,1704604095358,154.82968734,0.00017974,3]
[310639022,1704604113370,154.82968734,0.00017974,3]
[310639023,1704604131370,154.82968734,0.00017974,3]
[310639024,1704604157374,154.82968734,0.00017974,3]
[310639025,1704604166102,-1477.10064436,0.00018799,2]
[310639027,1704604175371,154.82968734,0.00017974,3]
[310639030,1704604195375,154.82968734,0.00016917,3]
[310639034,1704604211380,154.82968734,0.00016917,3]
[310639036,1704604229387,154.82968734,0.00017962,3]
[310639054,1704604232581,-334.06145547,0.00018798,2]
[310639056,1704604232592,-334.06145547,0.00018798,2]
[310639058,1704604232604,-334.06145547,0.00018798,2]
[310639059,1704604232616,-643.7659202,0.000189,2]
[310639060,1704604232627,-9714.57,0.0001995,3]
[310639062,1704604232639,-1205.47317756,0.0001996,2]
[310639064,1704604232650,-56315.63397541,0.0001996,2]
[310639100,1704604240755,-6000.16901473,0.0001996,2]
[310639102,1704604240771,-2364.29999995,0.0001996,2]
[310639117,1704604240909,-1214.97965359,0.0001996,2]
[310639120,1704604240924,-831.40325975,0.0001996,2]
[310639269,1704604249380,154.82968734,0.00017974,3]
[310639270,1704604267399,154.82968734,0.00017974,3]
[310639272,1704604287390,154.82968734,0.00017974,3]
[310639273,1704604305393,154.82968734,0.00017974,3]
[310639274,1704604321391,154.82968734,0.00017974,3]
[310639275,1704604345447,154.82968734,0.00017974,3]
[310639276,1704604361393,154.82968734,0.00017965,3]
[310639277,1704604383545,154.82968734,0.00017965,3]
[310639278,1704604401410,154.82968734,0.00017974,3]
[310639279,1704604417432,154.82968734,0.00017965,3]
[310639280,1704604437410,154.82968734,0.00017974,3]
[310639283,1704604453415,154.82968734,0.00017965,3]
[310639284,1704604475419,154.82968734,0.00017965,3]
[310639285,1704604491420,154.82968734,0.00017965,3]
[310639286,1704604515425,154.82968734,0.00017965,3]
[310639288,1704604533505,154.82968734,0.00017974,3]
[310639291,1704604551427,154.82968734,0.00017965,3]
[310639292,1704604569429,154.82968734,0.00017965,3]
[310639293,1704604585500,154.82968734,0.00017974,3]
[310639294,1704604603444,154.82968734,0.00017965,3]
[310639295,1704604619434,154.82968734,0.00017965,3]
[310639296,1704604635441,154.82968734,0.00017974,3]
[310639297,1704604657438,154.82968734,0.00017965,3]
[310639300,1704604677433,154.82968734,0.00017965,3]
[310639302,1704604695441,154.82968734,0.00017974,3]
[310639303,1704604713444,154.82968734,0.00017965,3]
[310639304,1704604731443,154.82968734,0.00017974,3]
[310639305,1704604749450,154.82968734,0.00017965,3]
[310639306,1704604769465,154.82968734,0.00017965,3]
[310639308,1704604791445,154.82968734,0.00017965,3]
[310639309,1704604807448,154.82968734,0.00017965,3]
[310639310,1704604825450,154.82968734,0.00017974,3]
[310639311,1704604845453,154.82968734,0.00017965,3]
[310639312,1704604861461,154.82968734,0.00017974,3]
[310639313,1704604883457,154.82968734,0.00017965,3]
[310639314,1704604899459,154.82968734,0.00017965,3]
[310639315,1704604915464,154.82968734,0.00017974,3]
[310639316,1704604931492,154.82968734,0.00017965,3]
[310639317,1704604949468,154.82968734,0.00017965,3]
[310639318,1704604975471,154.82968734,0.00017965,3]
[310639320,1704604991854,154.82968734,0.00017965,3]
[310639321,1704605007475,154.82968734,0.00017974,3]
[310639322,1704605031475,154.82968734,0.00017965,3]
[310639323,1704605053485,154.82968734,0.00017974,3]
[310639325,1704605073477,154.82968734,0.00017965,3]
[310639328,1704605089514,154.82968734,0.00017965,3]
[310639329,1704605107521,99.70286012,0.00017974,3]
[310639330,1704605107546,55.12682722,0.00017974,3]
[310639331,1704605129520,154.82968734,0.00017965,3]
[310639332,1704605145530,154.82968734,0.00017974,3]
[310639333,1704605163540,154.82968734,0.00017974,3]
[310639334,1704605185531,154.82968734,0.00017974,3]
[310639335,1704605203533,154.82968734,0.00017973,3]
[310639337,1704605221537,154.82968734,0.00017965,3]
[310639338,1704605247544,154.82968734,0.00017974,3]
[310639339,1704605263555,154.82968734,0.00017956,3]
[310639341,1704605285589,154.82968734,0.00017974,3]
[310639342,1704605303549,154.82968734,0.00017965,3]
[310639343,1704605323548,154.82968734,0.00017974,3]
[310639344,1704605341559,154.82968734,0.00017965,3]
[310639345,1704605357554,154.82968734,0.00017965,3]
[310639346,1704605383560,154.82968734,0.00017964,3]
[310639347,1704605405578,154.82968734,0.00017964,3]
[310639348,1704605425616,154.82968734,0.00017974,3]
[310639369,1704605431807,-480.07663427,0.000188,2]
[310639370,1704605431819,-16833.1450817,0.000188,2]
[310639371,1704605431828,-681.60766667,0.000189,2]
[310639372,1704605431837,-678.7442215,0.00018962,2]
[310639373,1704605431846,-175.45403617,0.00019863,2]
[310639374,1704605431855,-8480.44,0.00019952,3]
[310639375,1704605431865,-12101.32,0.00019952,3]
[310639376,1704605431874,-11591.12872027,0.0001996,2]
[310639377,1704605431884,-1584.24056017,0.00019961,2]
[310639378,1704605431894,-1989.01542553,0.00019961,2]
[310639379,1704605431903,-2278.97380931,0.00019961,3]
[310639389,1704605439583,-12242.60619069,0.00019961,3]
[310639390,1704605439592,-370.8764624,0.00019962,2]
[310639391,1704605439602,-20918.62333913,0.00019962,2]
[310639392,1704605439611,-10084.43,0.00019963,3]
[310639393,1704605439620,-160.5343555,0.00019971,2]
[310639394,1704605439629,-4191.38119658,0.00019971,2]
[310639395,1704605439640,-1292.34647348,0.00019971,2]
[310639396,1704605439649,-451.41864599,0.00019971,2]
[310639397,1704605439659,-172.57802614,0.00019971,2]
[310639398,1704605439668,-199.38797912,0.00019971,2]
[310639399,1704605439678,-175.40204326,0.00019971,2]
[310639400,1704605439687,-155.64447154,0.00019972,2]
[310639401,1704605439696,-211.43453443,0.00019972,2]
[310639402,1704605439705,-260.04425413,0.00019972,2]
[310639403,1704605439714,-59.34860841,0.00019972,2]
[310639430,1704605442883,-149.68428521,0.00019972,2]
[310639433,1704605442894,-308.39806422,0.00019972,2]
[310639436,1704605442903,-194.57569575,0.00019972,2]
[310639589,1704605456735,200.0,0.00021969,7]
[310639590,1704605457561,280.0,0.00024166,7]
[310639646,1704606631998,-153.72355569,0.000187,2]
[310639647,1704606632008,-260.15058301,0.00018798,2]
[310639648,1704606632017,-520.65037952,0.00018799,2]
[310639649,1704606632027,-198.67975996,0.000188,2]
[310639650,1704606632036,-454.40511112,0.000189,2]
[310639651,1704606632045,-153.72355568,0.000199,2]
[310639652,1704606632054,-553.651301,0.00019962,2]
[310639653,1704606632064,-154.01563349,0.00019963,3]
[310639654,1704606632076,-360.12535493,0.00019963,3]
[310639880,1704606643087,-260.04425413,0.00019963,3]
[310639965,1704607832161,-260.15058301,0.00018046,2]
[310639966,1704607832171,-451.49189854,0.00018047,2]
[310639967,1704607832180,-154.82968734,0.00018047,2]
[310639969,1704607832190,-154.82968734,0.00018047,2]
[310639971,1704607832200,-216.64466025,0.00018048,2]
[310639973,1704607832214,-2148.72028132,0.00018048,2]
[310639974,1704607832225,-1108.06037947,0.00018048,2]
[310639976,1704607832235,-520.65037952,0.00018048,2]
[310639978,1704607832245,-1574.98050805,0.00018048,2]
[310639979,1704607832254,-560.14633467,0.00018049,2]
[310639981,1704607832263,-19649.20370013,0.00018052,2]
[310639983,1704607832272,-267.7071741,0.00018063,2]
[310639984,1704607832281,-156.04606038,0.00018771,2]
[310639986,1704607832290,-4278.02609063,0.00018899,2]
[310639988,1704607832301,-302.93674074,0.000189,2]
[310639990,1704607832311,-4534.3838669,0.00019771,2]
[310639992,1704607832320,-8274.66,0.00019962,3]
[310639993,1704607832330,-1577.02425299,0.00019969,2]
[310639995,1704607832338,-155.36374798,0.00019969,2]
[310639997,1704607832348,-322.14948125,0.00019969,2]
[310639998,1704607832357,-307.03838679,0.00019969,2]
[310640000,1704607832366,-2042.52135885,0.0001997,2]
[310640002,1704607832376,-151.0,0.00019971,2]
[310640004,1704607832386,-242.580168,0.00019971,2]
[310640006,1704607832396,-218.346931,0.00019971,2]
[310640007,1704607832407,-151.0,0.00019971,2]
[310640009,1704607832416,-154.82968734,0.00019971,3]
[310640011,1704607832426,-244.17060397,0.00019971,2]
[310640013,1704607832435,-179.21536151,0.00019971,2]
[310640014,1704607832443,-4805.19526599,0.00019971,2]
[310640016,1704607832452,-3383.93994597,0.00019971,2]
[310640018,1704607832462,-3748.48367841,0.00019971,2]
[310640019,1704607832471,-10416.07342598,0.00019971,2]
[310640021,1704607832480,-874.30897606,0.00019971,2]
[310640023,1704607832490,-155.47849236,0.00019971,2]
[310640025,1704607832499,-20.08902845,0.00019972,2]
[310640026,1704607832508,-10555.25821443,0.00019972,2]
[310640028,1704607832517,-151.0,0.00019972,2]
[310640030,1704607832526,-151.834987,0.00019972,2]
[310640031,1704607832535,-151.0,0.00019972,2]
[310640032,1704607832544,-151.0,0.00019973,2]
[310640033,1704607832553,-151.0,0.00019973,2]
[310640034,1704607832562,-3673.84201471,0.00019973,2]
[310640038,1704607838470,-4713.52380955,0.00019973,2]
[310640077,1704607843267,-690.98561741,0.00019973,2]
[310640396,1704607901872,154.82968734,0.00017974,3]
[310640405,1704608217183,150.83408251,0.00028834,120]
[310640406,1704608281195,-260.15058301,0.00018886,2]
[310640407,1704608281223,-295.42151274,0.00018887,2]
[310640408,1704608281252,-946.23744718,0.00018888,2]
[310640409,1704608281300,-3473.42532104,0.00018888,2]
[310640410,1704608281334,-24.76513603,0.000189,2]
[310640411,1704608281384,-464.20429341,0.000189,2]
[310640414,1704608337915,154.82968734,0.00017964,3]
[310640420,1704608549282,-319.46002724,0.000189,2]
[310640421,1704608549337,-6.51959239,0.000189,2]
[310640426,1704608684534,1645.8363944,0.00017964,2]
[310640427,1704608697958,154.82968734,0.00017964,3]
[310640429,1704608714997,-4107.1902702,0.000189,2]
[310640430,1704608715166,-83.8202096,0.000189,2]
[310640431,1704608716535,730.51490267,0.00017964,2]
[310640432,1704608719295,-254.94757135,0.00018899,2]
[310640433,1704608719423,-5.20301166,0.00018899,2]
[310640434,1704608721299,-292.02954878,0.000189,2]
[310640435,1704608721472,-5.95978671,0.000189,2]
[310640436,1704608723785,292.02954878,0.000189,2]
[310640437,1704608723823,135.19348348,0.000189,2]
[310640438,1704608731015,-5000.0,0.000189,2]
[310640439,1704608731330,-5000.0,0.000189,2]
[310640440,1704608731513,-5000.0,0.000189,2]
[310640441,1704608731622,-5000.0,0.000189,2]
[310640442,1704608731769,-5000.0,0.000189,2]
[310640443,1704608731901,-5000.0,0.000189,2]
[310640444,1704608732129,-5000.0,0.000189,2]
[310640445,1704608732164,-5000.0,0.000189,2]
[310640446,1704608732226,-5000.0,0.000189,2]
[310640447,1704608732427,-5000.0,0.000189,2]
[310640448,1704608732576,-2756.70059064,0.000189,2]
[310640449,1704608739217,-222.65947461,0.000189,2]
[310640451,1704608739515,-4.54407091,0.000189,2]
[310640454,1704608821391,-154.82968734,0.000189,2]
[310640455,1704608821420,-1145.44038178,0.000189,2]
[310640456,1704608821523,-26.53612386,0.000189,2]
[310640457,1704608824143,301.12845031,0.000189,2]
[310640458,1704608827492,-1554.54034821,0.000189,2]
[310640459,1704608827834,-31.72531323,0.000189,2]
[310640460,1704608827879,-642.55748837,0.000189,2]
[310640461,1704608829106,-154.82968734,0.00018901,2]
[310640462,1704608829126,-253.40565019,0.00018901,2]
[310640463,1704608829147,-154.82968734,0.00018901,2]
[310640464,1704608829302,-360.50687317,0.00018902,2]
[310640465,1704608829323,-343.79714882,0.00018902,2]
[310640466,1704608829343,-209.7315975,0.00018902,2]
[310640467,1704608830882,295.42151274,0.000189,2]
[310640468,1704608846868,-1187.95947286,0.000189,2]
[310640469,1704608847005,-24.24407087,0.000189,2]
[310640470,1704608848326,520.65037952,0.000189,2]
[310640471,1704608852107,-1214.36745025,0.000189,2]
[310640472,1704608852290,-24.78300919,0.000189,2]
[310640473,1704608852334,1189.58444106,0.000189,2]
[310640474,1704608852383,-385.39606699,0.000189,2]
[310640475,1704608862508,-178.41499586,0.000189,2]
[310640476,1704608862536,-1984.59945766,0.000189,2]
[310640477,1704608862668,-44.14315211,0.000189,2]
[310640478,1704608894081,-1554.54034821,0.000189,2]
[310640479,1704608894368,-31.72531323,0.000189,2]
[310640480,1704608894396,-1522.81503498,0.000189,2]
[310640481,1704608894949,-5000.0,0.000189,2]
[310640482,1704608895216,-5000.0,0.000189,2]
[310640483,1704608895280,-5000.0,0.000189,2]
[310640484,1704608895581,-4297.06267493,0.000189,2]
[310640497,1704608991352,515.48078474,0.00018813,2]
[310640498,1704608991381,515.48078474,0.00018813,2]
[310640499,1704608991408,515.48078474,0.00018813,2]
[310640500,1704608991437,28.53815383,0.00018813,2]
[310640501,1704608994318,515.48078474,0.00018813,2]
[310640502,1704608994347,44.66554993,0.00018813,2]
[310640503,1704609003417,260.15058301,0.00018813,2]
[310640505,1704609021935,515.48078474,0.00018813,2]
[310640506,1704609021963,515.48078474,0.00018813,2]
[310640507,1704609021990,181.24197425,0.00018813,2]
[310640508,1704609024484,154.82968734,0.00018813,2]
[310640516,1704609036351,-526.00080075,0.00018814,2]
[310640517,1704609036361,-80.61671511,0.00018912,2]
[310640518,1704609036373,-95.82837822,0.00018912,2]
[310640519,1704609036382,-2807.0434753,0.00018912,2]
[310640520,1704609036391,-20819.87770991,0.00018916,2]
[310640521,1704609036400,-2998.5953234,0.00018917,2]
[310640522,1704609036409,-4729.65,0.0001995,3]
[310640523,1704609036419,-275.66945451,0.00019958,2]
[310640524,1704609036428,-327.01671096,0.00019958,2]
[310640525,1704609036437,-343.25135389,0.00019958,2]
[310640526,1704609036447,-178.82542715,0.00019958,2]
[310640527,1704609036457,-254.07753617,0.00019958,2]
[310640528,1704609036466,-361.82668194,0.00019958,2]
[310640529,1704609036476,-1240.12192672,0.00019958,2]
[310640530,1704609036485,-1203.76750368,0.00019958,2]
[310640531,1704609036495,-178.83509015,0.00019958,2]
[310640532,1704609036505,-761.90435601,0.00019958,2]
[310640533,1704609036515,-1025.79165974,0.00019958,2]
[310640534,1704609036524,-1574.98050805,0.00019958,2]
[310640535,1704609036534,-309.4199846,0.00019958,2]
[310640536,1704609036543,-362.39736774,0.00019958,2]
[310640537,1704609036553,-1063.79895805,0.00019959,2]
[310640538,1704609036562,-485.13096954,0.00019959,2]
[310640539,1704609036571,-1447.53906817,0.0001996,2]
[310640540,1704609036581,-580.77524511,0.0001996,2]
[310640541,1704609036590,-205.31894671,0.0001996,2]
[310640542,1704609036599,-352.26183625,0.0001996,2]
[310640543,1704609036609,-557.63265072,0.0001996,2]
[310640544,1704609036620,-322.38366746,0.0001996,2]
[310640545,1704609036629,-155.53002517,0.0001996,2]
[310640546,1704609036638,-154.84515485,0.0001996,2]
[310640547,1704609036647,-155.08631331,0.0001996,2]
[310640548,1704609036656,-2642.94309016,0.0001996,2]
[310640549,1704609036665,-155.47266329,0.0001996,2]
[310640550,1704609036674,-7853.18847264,0.0001996,2]
[310640551,1704609036684,-253.7100353,0.0001996,2]
[310640552,1704609036693,-155.33287098,0.0001996,2]
[310640553,1704609036702,-164.32046316,0.0001996,2]
[310640554,1704609036713,-156.05960373,0.0001996,2]
[310640555,1704609036722,-321.94449774,0.0001996,2]
[310640556,1704609036810,-243.50053241,0.0001996,2]
[310640557,1704609036822,-212.61910187,0.0001996,2]
[310640558,1704609036833,-863.29421261,0.0001996,2]
[310640559,1704609036844,-214.70592479,0.0001996,2]
[310640560,1704609036856,-2099.1643818,0.0001996,2]
[310640561,1704609036867,-469.37613453,0.0001996,2]
[310640562,1704609036877,-1186.25070215,0.0001996,2]
[310640563,1704609036888,-10640.59182837,0.0001996,2]
[310640564,1704609036898,-155.33770632,0.0001996,2]
[310640565,1704609036907,-764.27762009,0.0001996,2]
[310640566,1704609036917,-301.99010241,0.0001996,2]
[310640567,1704609036928,-2715.00013178,0.00019961,2]
[310640568,1704609036942,-286.47112925,0.00019961,2]
[310640569,1704609036952,-2075.63372927,0.00019961,2]
[310640570,1704609036961,-151.0,0.00019961,2]
[310640571,1704609036971,-151.0,0.00019961,2]
[310640572,1704609036981,-151.0,0.00019962,2]
[310640573,1704609036990,-151.0,0.00019962,2]
[310640574,1704609036999,-4213.5767861,0.00019962,2]
[310640575,1704609037633,176.44509333,0.00018813,2]
[310640612,1704609038509,-9019.13,0.0001995,3]
[310640614,1704609038519,-1026.40683795,0.00019958,2]
[310640616,1704609038528,-37860.76560709,0.00019962,2]
[310640618,1704609038537,-4353.15378702,0.00019968,2]
[310640619,1704609038547,-155.65350702,0.00019971,2]
[310640621,1704609038556,-155.18404504,0.00019971,2]
[310640623,1704609038565,-989.19178911,0.00019971,2]
[310640625,1704609038574,-155.87858584,0.00019971,2]
[310640627,1704609038583,-155.34872192,0.00019971,2]
[310640629,1704609038593,-1988.32263926,0.00019971,2]
[310640632,1704609038602,-19137.30849322,0.00019972,2]
[310640633,1704609038612,-151.0,0.00019972,2]
[310640635,1704609038621,-151.0,0.00019972,2]
[310640637,1704609038631,-151.0,0.00019973,2]
[310640639,1704609038640,-227.675729,0.00019973,2]
[310640641,1704609038649,-30692.79781714,0.00019973,2]
[310640643,1704609038658,-268.8999641,0.0002,2]
[310640645,1704609038668,-676.51927757,0.0002,2]
[310640647,1704609038677,-154.82968734,0.0002,2]
[310640649,1704609038688,-195.81980395,0.0002,2]
[310640651,1704609038696,-155.27559895,0.0002,2]
[310640653,1704609038705,-3004.21050443,0.0002,2]
[310640655,1704609038714,-853.04227441,0.0002,2]
[310640658,1704609038727,-255.16835407,0.0002,2]
[310640660,1704609038739,-155.12372006,0.0002,2]